bitfinex-derivatives/quotes_ETHF0:USTF0_20240928
["timestamp","ask_amount","ask_price","bid_price","bid_amount"]
[1727524182229,1.72398,2673.5,2673.4,3.04523234]
[1727524182639,1.72398,2673.5,2673.4,1.72821361]
[1727524183331,1.72398,2673.5,2673.4,3.04545833]
[1727524184129,1.72398,2673.5,2673.4,2.06613472]
[1727524184559,1.72398,2673.5,2673.4,3.04649875]
[1727524185129,1.72398,2673.5,2673.4,2.06613472]
[1727524185644,1.72398,2673.5,2673.4,1.69214472]
[1727524185943,1.72398,2673.5,2673.4,2.67267107]
[1727524186442,1.72398,2673.5,2673.4,2.67313173]
[1727524187341,1.72398,2673.5,2673.4,1.69260538]
[1727524188236,1.72398,2673.5,2673.4,3.16461577]
[1727524189947,2.65894,2673.5,2673.4,3.16461577]
[1727524191235,2.65894,2673.5,2673.4,3.16568127]
[1727524191645,2.65894,2673.5,2673.4,3.74384074]
[1727524191946,2.65894,2673.5,2673.4,3.16568127]
[1727524192341,2.65894,2673.5,2673.4,3.74392241]
[1727524193150,5.86674,2673.5,2673.4,3.16568127]
[1727524193448,5.86674,2673.5,2673.4,3.74393997]
[1727524194768,5.86674,2673.5,2673.4,3.16568127]
[1727524194963,5.86674,2673.5,2673.4,3.74395643]
[1727524195652,5.86674,2673.5,2673.4,3.36905643]
[1727524195853,5.86674,2673.5,2673.4,2.79078127]
[1727524196053,9.60754,2673.5,2673.4,2.79109961]
[1727524196256,9.60754,2673.5,2673.4,0.98162364]
[1727524197464,5.86674,2673.5,2673.4,0.98162364]
[1727524197656,9.60754,2673.5,2673.4,0.98162364]
[1727524199154,15.81954,2673.5,2673.4,0.98162364]
[1727524201061,0.37399,2673.4,2673.3,1.37206048]
[1727524201359,2.09649,2673.4,2673.3,2.30261541]
[1727524201570,0.37401,2673.3,2673.2,0.98138284]
[1727524201760,0.37402,2673.2,2673.1,0.98138284]
[1727524202067,4.93182,2673.2,2673.1,0.98138284]
[1727524202270,4.93182,2673.2,2673.1,2.30220616]
[1727524202469,4.93182,2673.2,2673.1,0.98138284]
[1727524204669,1.72402,2673.2,2673.1,0.98138284]
[1727524205176,0.37404,2673.1,2673.0,1.39008284]
[1727524205465,0.37404,2673.1,2673.0,2.71032851]
[1727524205663,0.37404,2673.1,2673.0,1.39008284]
[1727524206069,0.37404,2673.1,2673.0,2.71034273]
[1727524206367,0.37404,2673.1,2673.0,1.39008284]
[1727524206571,1.72403,2673.2,2673.0,1.39008284]
[1727524206964,1.35,2673.2,2673.1,0.4071]
[1727524207159,3.2078,2673.3,2673.1,1.76118284]
[1727524207366,3.2078,2673.3,2673.1,2.13521284]
[1727524207767,3.2078,2673.3,2673.2,0.37402]
[1727524208269,3.2078,2673.3,2673.2,1.72402]
[1727524208469,3.5558,2673.6,2673.5,0.37398]
[1727524208664,3.5558,2673.6,2673.5,0.98037399]
[1727524208665,3.2078,2673.6,2673.5,0.98037399]
[1727524208963,3.2078,2673.6,2673.5,2.6741553]
[1727524209172,3.2078,2673.6,2673.5,3.4407553]
[1727524209676,3.2078,2673.6,2673.5,2.46038131]
[1727524211282,3.2078,2673.6,2673.5,3.44071388]
[1727524211774,3.2078,2673.6,2673.5,2.46038131]
[1727524212185,7.6838,2674.1,2673.5,8.64696229]
[1727524212475,7.6838,2674.1,2673.9,1.3541113]
[1727524212476,4.9317,2674.1,2673.9,1.3541113]
[1727524212777,4.9317,2674.1,2674.0,0.7869]
[1727524213077,4.5578,2674.1,2674.0,0.7869]
[1727524213870,3.2078,2674.1,2674.0,2.1410013]
[1727524215172,3.2078,2674.1,2674.0,3.4910013]
[1727524215565,3.2078,2674.1,2674.0,3.45886493]
[1727524215769,3.2078,2674.1,2674.0,2.4794356]
[1727524216170,3.2078,2674.1,2674.0,3.4586138]
[1727524216376,3.2078,2674.1,2674.0,3.45827727]
[1727524217273,3.2078,2674.1,2674.0,2.1399882]
[1727524217983,3.5817,2674.1,2674.0,1.7660782]
[1727524218393,3.5817,2674.1,2674.0,0.7869]
[1727524220685,3.5817,2674.1,2674.0,1.16081]
[1727524220886,3.5817,2674.1,2674.0,0.7869]
[1727524221379,3.5817,2674.1,2674.0,1.16081]
[1727524224692,0.3739,2674.1,2674.0,1.16081]
[1727524225181,0.3739,2674.1,2674.0,0.7869]
[1727524225899,0.3739,2674.1,2674.0,1.16081]
[1727524226189,3.58169,2674.2,2674.1,0.3739]
[1727524226384,0.3739,2674.1,2674.0,1.1608]
[1727524226690,3.2078,2674.2,2674.1,0.3739]
[1727524227794,3.58168,2674.2,2674.1,0.3739]
[1727524227994,3.2078,2674.2,2674.1,0.3739]
[1727524228890,3.58168,2674.2,2674.1,0.3739]
[1727524229191,3.2078,2674.2,2674.1,0.3739]
[1727524229889,3.58168,2674.2,2674.1,0.3739]
[1727524230482,3.2078,2674.2,2674.1,0.3739]
[1727524230890,3.58168,2674.2,2674.1,0.3739]
[1727524231285,3.2078,2674.2,2674.1,0.3739]
[1727524232389,3.58168,2674.2,2674.1,0.3739]
[1727524233789,3.2078,2674.2,2674.1,0.3739]
[1727524235894,0.348,2674.6,2674.5,0.37384]
[1727524236090,3.2078,2674.7,2674.6,0.37383]
[1727524236283,1.13939,2674.9,2674.7,0.37381]
[1727524236596,1.66113,2675.1,2674.9,0.37378]
[1727524236597,0.37376,2675.1,2674.9,0.37378]
[1727524236787,0.74515,2675.2,2674.9,0.37378]
[1727524237689,0.74515,2675.2,2674.8,2.10769]
[1727524238184,1.72376,2675.1,2674.8,0.3839]
[1727524238387,4.9594,2675.0,2674.8,0.3839]
[1727524238589,5.33318,2675.0,2674.8,0.3839]
[1727524239797,0.37378,2674.9,2674.8,0.3839]
[1727524240298,0.37378,2674.9,2674.6,0.798]
[1727524240502,1.7446,2674.8,2674.6,0.798]
[1727524241507,1.7446,2674.8,2674.6,1.17182]
[1727524244098,2.1184,2674.8,2674.6,1.17182]
[1727524246603,2.1184,2674.8,2674.7,0.37381]
[1727524247393,2.1184,2674.8,2674.6,1.17182]
[1727524248298,2.1184,2674.8,2674.6,0.798]
[1727524248499,2.1184,2674.8,2674.6,1.17182]
[1727524250205,2.1184,2674.8,2674.7,0.37381]
[1727524250397,1.7446,2674.8,2674.6,1.17182]
[1727524250702,0.37381,2674.7,2674.6,1.17182]
[1727524250900,2.11841,2674.8,2674.6,0.798]
[1727524251202,2.11841,2674.8,2674.7,0.37381]
[1727524254103,2.11841,2674.8,2674.6,1.17182]
[1727524254303,2.11841,2674.8,2674.7,0.37381]
[1727524255200,0.37381,2674.7,2674.6,0.4058]
[1727524255401,0.37381,2674.7,2674.4,0.9770439]
[1727524255402,4.93162,2674.7,2674.4,0.9770439]
[1727524255603,0.76713,2674.6,2674.3,1.3559439]
[1727524256103,0.76713,2674.6,2674.5,0.37384]
[1727524256104,0.3933,2674.6,2674.5,0.37384]
[1727524256494,0.76713,2674.6,2674.5,0.37384]
[1727524256698,0.3933,2674.6,2674.5,0.37384]
[1727524257707,0.76713,2674.6,2674.5,0.37384]
[1727524258110,0.3933,2674.6,2674.5,0.37384]
[1727524260609,0.7684,2674.8,2674.7,0.37381]
[1727524260817,0.37379,2674.9,2674.8,0.37379]
[1727524261002,4.9578,2675.0,2674.7,0.7525]
[1727524261003,0.3738,2674.8,2674.7,0.7525]
[1727524261202,0.3738,2674.8,2674.7,1.1419]
[1727524261509,0.3738,2674.9,2674.8,0.3738]
[1727524262809,0.37379,2674.9,2674.7,1.14191]
[1727524270607,1.7238,2674.8,2674.7,0.7681]
[1727524271412,1.7238,2674.8,2674.7,1.14191]
[1727524272515,1.35,2674.8,2674.7,1.14191]
[1727524273018,1.35,2674.8,2674.7,2.1189539]
[1727524274619,1.35,2674.8,2674.7,1.14191]
[1727524280228,1.35,2674.8,2674.7,2.1189539]
[1727524281623,1.35,2674.8,2674.7,7.06607294]
[1727524282618,1.35,2674.8,2674.7,7.6442223]
[1727524282826,1.7238,2674.8,2674.7,7.6442223]
[1727524283432,1.7238,2674.8,2674.7,7.64451011]
[1727524283726,1.7238,2674.8,2674.7,5.00234719]
[1727524285725,1.35,2674.8,2674.7,5.00245673]
[1727524285928,1.7238,2674.8,2674.7,5.00245673]
[1727524286329,1.7238,2674.8,2674.7,3.04125036]
[1727524286626,1.7238,2674.8,2674.7,5.00245673]
[1727524286627,1.35,2674.8,2674.7,5.00245673]
[1727524287030,1.35,2674.8,2674.7,3.04125036]
[1727524287225,1.35,2674.8,2674.7,5.00245673]
[1727524287627,1.7238,2674.8,2674.7,1.89934036]
[1727524287834,6.7964,2674.8,2674.7,0.98141906]
[1727524288037,0.37381,2674.7,2674.6,0.98141906]
[1727524288341,6.76985,2674.7,2674.6,0.98141906]
[1727524288535,0.37383,2674.6,2674.5,0.98141906]
[1727524288845,0.37384,2674.5,2674.4,0.98123651]
[1727524289029,1.72384,2674.5,2674.4,0.98123651]
[1727524289533,1.72384,2674.5,2674.3,1.35510651]
[1727524289534,0.37385,2674.4,2674.3,1.35510651]
[1727524289739,0.74695,2674.4,2674.3,1.35510651]
[1727524290741,0.74695,2674.4,2674.3,0.98123651]
[1727524291534,0.74695,2674.4,2674.2,1.84587456]
[1727524291535,0.74695,2674.4,2674.2,1.35510651]
[1727524291734,1.72387,2674.3,2674.2,1.35510651]
[1727524292036,4.93167,2674.3,2674.2,1.35510651]
[1727524292639,4.5578,2674.3,2674.2,1.35510651]
[1727524292836,4.93167,2674.3,2674.2,0.98123651]
[1727524293035,0.37388,2674.2,2674.1,6.10782039]
[1727524293237,0.74868,2674.2,2674.1,5.12658388]
[1727524294941,3.95648,2674.2,2674.1,5.12658388]
[1727524295445,3.95648,2674.2,2674.1,0.8027]
[1727524296540,3.95648,2674.2,2673.9,1.38423651]
[1727524296541,0.3739,2674.1,2673.9,1.75815651]
[1727524296738,1.35,2674.0,2673.9,2.15285651]
[1727524297242,1.35,2674.0,2673.9,1.17162]
[1727524298844,1.35,2674.0,2673.9,0.7977]
[1727524300337,1.35,2674.0,2673.9,1.17162]
[1727524302146,1.72391,2674.0,2673.9,0.7977]
[1727524302946,1.35,2674.0,2673.9,1.17162]
[1727524303458,1.35,2674.0,2673.9,0.7977]
[1727524303459,1.72391,2674.0,2673.9,0.7977]
[1727524305655,1.35,2674.0,2673.9,1.17162]
[1727524308254,1.72391,2674.0,2673.9,1.17162]
[1727524311351,1.35,2674.0,2673.9,1.17162]
[1727524312356,1.72391,2674.0,2673.9,1.17162]
[1727524312555,1.35,2674.0,2673.9,1.17162]
[1727524312761,1.72391,2674.0,2673.9,0.7977]
[1727524318048,1.72391,2674.0,2673.9,0.3947]
[1727524318252,2.11601,2674.0,2673.9,0.3947]
[1727524326761,2.11601,2674.0,2673.9,0.76862]
[1727524326958,2.11601,2674.0,2673.9,0.3947]
[1727524327861,1.72391,2674.0,2673.9,0.3947]
[1727524330457,1.72391,2674.0,2673.9,1.37593651]
[1727524332462,1.72391,2674.0,2673.9,1.71464145]
[1727524332957,1.72391,2674.0,2673.9,2.08856145]
[1727524333268,1.72391,2674.0,2673.9,1.71464145]
[1727524333463,1.72391,2674.0,2673.9,3.18664601]
[1727524334163,1.72391,2674.0,2673.9,1.71464145]
[1727524334469,1.72391,2674.0,2673.9,3.18664601]
[1727524334671,1.72391,2674.0,2673.9,3.1876823]
[1727524335375,1.72391,2674.0,2673.9,3.76583411]
[1727524335872,1.72391,2674.0,2673.9,3.1876823]
[1727524336074,1.72391,2674.0,2673.9,3.76583352]
[1727524337074,1.72391,2674.0,2673.9,3.1876823]
[1727524337666,1.72391,2674.0,2673.9,3.76598132]
[1727524339365,1.72391,2674.0,2673.9,2.81892358]
[1727524339566,1.72391,2674.0,2673.9,3.77070701]
[1727524339766,1.72391,2674.0,2673.9,3.77069812]
[1727524340564,1.72391,2674.0,2673.9,3.1923991]
[1727524341060,1.72391,2674.0,2673.9,3.7707567]
[1727524342964,1.72391,2674.0,2673.9,4.1446767]
[1727524343167,3.2078,2674.1,2674.0,0.37391]
[1727524343371,3.2078,2674.1,2674.0,2.67500777]
[1727524344276,3.2078,2674.1,2674.0,2.67493471]
[1727524347275,3.2078,2674.1,2674.0,2.6749104]
[1727524348966,0.7431,2674.5,2674.2,0.37388]
[1727524348967,3.58166,2674.4,2674.2,0.37388]
[1727524349177,3.58166,2674.4,2674.3,0.3872]
[1727524349377,3.58166,2674.4,2674.3,1.77801509]
[1727524349682,3.58166,2674.4,2674.3,3.59373589]
[1727524350673,3.2078,2674.4,2674.3,3.59373589]
[1727524350879,3.58165,2674.4,2674.3,3.59373589]
[1727524353573,3.58165,2674.4,2674.3,3.10239903]
[1727524353784,3.58165,2674.4,2674.3,3.59297942]
[1727524355171,3.58165,2674.4,2674.3,4.17071829]
[1727524355172,3.2078,2674.4,2674.3,4.17071829]
[1727524355378,3.2078,2674.4,2674.3,3.07231565]
[1727524356378,3.2078,2674.4,2674.3,2.69844565]
[1727524356581,1.35,2674.6,2674.4,0.37385]
[1727524356582,1.72383,2674.6,2674.4,0.37385]
[1727524356883,1.72383,2674.6,2674.5,3.19012559]
[1727524357176,1.72383,2674.6,2674.5,3.19005046]
[1727524357372,1.72383,2674.6,2674.5,1.71980678]
[1727524357373,1.35,2674.6,2674.5,1.71980678]
[1727524357573,1.35,2674.6,2674.5,3.56344027]
[1727524358786,1.72383,2674.6,2674.5,3.18960027]
[1727524359179,1.72383,2674.6,2674.5,2.69945623]
[1727524359480,1.72383,2674.6,2674.5,2.69764641]
[1727524359784,1.72383,2674.6,2674.5,1.37524945]
[1727524360579,1.35,2674.6,2674.5,1.37524945]
[1727524366286,1.35,2674.6,2674.4,0.97964945]
[1727524366487,0.76774,2674.5,2674.4,0.97964945]
[1727524366789,4.36464,2674.5,2674.3,1.77614945]
[1727524366984,1.35,2674.4,2674.3,1.77614945]
[1727524367185,1.35,2674.4,2674.3,2.15001945]
[1727524373985,1.35,2674.4,2674.3,1.17037]
[1727524374182,1.35,2674.4,2674.3,2.15001945]
[1727524374385,3.9908,2674.5,2674.4,0.37385]
[1727524376892,3.9908,2674.5,2674.4,1.35349945]
[1727524379992,3.9908,2674.5,2674.4,0.37385]
[1727524380191,3.9908,2674.5,2674.4,1.35349945]
[1727524381310,4.36464,2674.5,2674.4,1.35349945]
[1727524381787,3.9908,2674.5,2674.4,1.35349945]
[1727524382593,0.783,2674.5,2674.4,1.35349945]
[1727524383197,1.15684,2674.5,2674.4,0.97964945]
[1727524383392,2.50684,2674.5,2674.3,1.35350945]
[1727524383591,2.89164,2674.5,2674.3,1.35350945]
[1727524385194,0.37385,2674.4,2674.3,0.97964945]
[1727524385499,2.5178,2674.5,2674.2,1.35351945]
[1727524385500,0.37387,2674.3,2674.2,1.35351945]
[1727524385700,4.93167,2674.3,2674.2,3.16588507]
[1727524385998,4.5578,2674.3,2674.2,1.69609158]
[1727524386195,4.5578,2674.3,2674.2,2.67545367]
[1727524386399,4.5578,2674.3,2674.2,1.69609158]
[1727524386693,1.35,2674.3,2674.2,1.35337374]
[1727524387004,4.5578,2674.3,2674.2,1.69628408]
[1727524387499,4.5578,2674.3,2674.2,3.16607757]
[1727524389498,4.5578,2674.3,2674.2,1.69628408]
[1727524390099,4.5578,2674.3,2674.2,3.16607757]
[1727524394197,4.5578,2674.3,2674.2,3.74387347]
[1727524394398,4.5578,2674.3,2674.2,2.27407998]
[1727524395495,4.5578,2674.3,2674.2,2.27560131]
[1727524396794,1.35,2674.3,2674.2,2.27560131]
[1727524398004,1.35,2674.3,2674.2,2.27565673]
[1727524399805,4.5578,2674.4,2674.3,0.37387]
[1727524400104,3.2078,2674.7,2674.6,0.37383]
[1727524400301,3.2078,2674.7,2674.6,3.16859892]
[1727524400601,3.5558,2675.0,2674.9,0.37378]
[1727524400801,2.1186,2675.1,2675.0,0.37377]
[1727524401003,1.35,2675.1,2675.0,1.73210228]
[1727524401204,3.5786,2675.3,2675.2,0.37374]
[1727524401205,4.5578,2675.3,2675.2,0.37374]
[1727524401410,3.2078,2675.3,2675.2,1.35378225]
[1727524401906,1.35,2675.5,2675.4,0.37371]
[1727524402102,4.5578,2675.6,2675.5,0.3737]
[1727524402504,4.5578,2675.6,2675.5,0.7652]
[1727524404301,4.5578,2675.6,2675.4,0.37371]
[1727524404606,1.35,2675.5,2675.4,0.77111]
[1727524409610,1.35,2675.5,2675.4,0.3974]
[1727524411626,1.7237,2675.5,2675.4,0.3974]
[1727524417020,0.37374,2675.3,2675.1,0.77105]
[1727524417318,0.37374,2675.3,2675.2,0.4072]
[1727524417511,1.72374,2675.3,2675.2,0.4072]
[1727524418119,0.37378,2674.9,2674.8,0.261]
[1727524418320,0.3738,2674.8,2674.7,0.7818]
[1727524418621,0.3738,2674.8,2674.5,0.6669]
[1727524418622,4.1122,2674.8,2674.3,0.261]
[1727524418813,4.1122,2674.8,2674.3,0.37386]
[1727524418814,1.35,2674.4,2674.3,0.37386]
[1727524419013,0.78891218,2674.4,2674.3,0.37386]
[1727524420626,1.35,2674.5,2674.4,0.37385]
[1727524423920,0.37384,2674.6,2674.5,0.37384]
[1727524428423,1.35,2674.9,2674.5,1.35]
[1727524428623,1.35,2674.9,2674.7,0.37381]
[1727524428624,0.37379,2674.9,2674.7,0.37381]
[1727524428826,0.37379,2674.9,2674.8,0.3881]
[1727524429523,3.5799,2675.0,2674.9,0.37378]
[1727524429726,3.58157,2675.0,2674.9,0.37378]
[1727524429929,3.2078,2675.0,2674.9,0.37378]
[1727524433636,3.2078,2675.0,2674.9,1.72378]
[1727524433839,3.2078,2675.0,2674.9,5.46218]
[1727524434448,0.348,2675.3,2675.2,0.37374]
[1727524434740,0.37373,2675.4,2675.3,0.37373]
[1727524435040,0.3809,2675.5,2675.0,0.8054]
[1727524435041,0.75461,2675.5,2675.4,0.37371]
[1727524436246,0.75461,2675.5,2675.3,0.37372]
[1727524436442,0.75461,2675.5,2675.4,0.395]
[1727524436836,0.75461,2675.5,2675.4,0.7971]
[1727524437534,0.75461,2675.5,2675.4,1.17081]
[1727524440032,0.3809,2675.5,2675.4,1.17081]
[1727524440442,0.7546,2675.5,2675.4,0.7971]
[1727524444949,2.1046,2675.5,2675.3,0.37372]
[1727524445144,2.1051,2675.5,2675.2,0.37374]
[1727524445347,1.35,2675.2,2675.1,1.14255]
[1727524445549,1.12881,2675.5,2675.3,0.37372]
[1727524446044,0.37371,2675.4,2675.3,0.37372]
[1727524456049,0.37373,2675.3,2675.2,0.37373]
[1727524456755,0.37372,2675.4,2675.3,0.37373]
[1727524459252,0.37374,2675.3,2675.2,0.37373]
[1727524460560,0.37376,2675.1,2675.0,0.37377]
[1727524460859,3.9629,2675.5,2675.0,1.35]
[1727524461066,0.37372,2675.4,2675.3,0.37372]
[1727524461664,0.37372,2675.4,2675.3,0.76752]
[1727524461862,0.37372,2675.4,2675.3,0.76753]
[1727524462658,0.37372,2675.4,2675.3,0.3938]
[1727524465660,1.35,2675.4,2675.1,0.97996708]
[1727524465864,3.2078,2675.2,2675.1,0.37376]
[1727524468259,3.2078,2675.2,2675.1,1.35372708]
[1727524469562,0.37373,2675.3,2675.1,1.35372708]
[1727524469959,0.37373,2675.3,2675.2,0.3741]
[1727524470466,0.37373,2675.3,2675.2,0.74784]
[1727524471065,0.37373,2675.4,2675.2,0.74784]
[1727524471260,5.7095,2675.5,2675.2,1.72780708]
[1727524471465,0.37371,2675.4,2675.3,0.3995]
[1727524473366,0.37371,2675.4,2675.3,2.70011694]
[1727524473663,0.37371,2675.4,2675.3,1.72014986]
[1727524474263,0.37371,2675.4,2675.3,3.19092031]
[1727524474567,3.2078,2675.5,2675.3,6.92852031]
[1727524474768,3.58151,2675.5,2675.4,0.98018835]
[1727524475378,3.58151,2675.5,2675.4,2.30155153]
[1727524475769,3.58151,2675.5,2675.4,2.30156845]
[1727524476665,3.58151,2675.5,2675.3,1.75340835]
[1727524476666,0.37371,2675.4,2675.3,1.75340835]
[1727524477063,0.37371,2675.4,2675.3,6.06882865]
[1727524477560,3.58151,2675.4,2675.3,6.06882865]
[1727524478370,3.58151,2675.4,2675.3,2.33122865]
[1727524478570,3.58151,2675.4,2675.3,6.06882865]
[1727524478772,3.2078,2675.4,2675.3,6.06882865]
[1727524479277,3.58151,2675.4,2675.3,6.06882865]
[1727524481674,3.58151,2675.4,2675.3,2.33122865]
[1727524483862,3.58151,2675.4,2675.3,1.3510403]
[1727524484766,0.37371,2675.4,2675.3,1.3510403]
[1727524484968,3.58151,2675.4,2675.3,1.3510403]
[1727524486470,3.58151,2675.4,2675.3,0.77322]
[1727524486775,3.58151,2675.4,2675.3,4.14454913]
[1727524486977,3.58151,2675.4,2675.3,4.14455082]
[1727524487380,3.58151,2675.4,2675.3,1.3512683]
[1727524487778,3.58151,2675.4,2675.3,0.9775483]
[1727524489374,3.58151,2675.4,2675.3,1.3512783]
[1727524490171,3.58151,2675.4,2675.3,1.35134543]
[1727524490483,3.58151,2675.4,2675.3,0.97761543]
[1727524491980,0.37371,2675.4,2675.3,2.29986736]
[1727524492280,3.58151,2675.4,2675.3,2.29986736]
[1727524492579,3.58151,2675.4,2675.3,2.67359736]
[1727524495374,3.58151,2675.4,2675.3,2.29986736]
[1727524495585,3.58151,2675.4,2675.3,3.37200739]
[1727524495786,3.58151,2675.4,2675.3,2.29316736]
[1727524496481,0.37371,2675.4,2675.3,2.66689736]
[1727524496678,3.58151,2675.4,2675.3,2.66689736]
[1727524496894,3.58151,2675.4,2675.3,2.08878193]
[1727524497683,3.58151,2675.4,2675.3,2.66695269]
[1727524498187,3.58151,2675.4,2675.3,2.66702541]
[1727524499895,3.2078,2675.4,2675.3,2.66702541]
[1727524500387,3.2078,2675.4,2675.3,2.08885465]
[1727524500785,3.2078,2675.4,2675.3,4.05056936]
[1727524501282,3.2078,2675.4,2675.3,2.08885465]
[1727524501483,3.2078,2675.4,2675.3,4.05056936]
[1727524501678,3.2078,2675.4,2675.3,4.0506005]
[1727524502584,3.58151,2675.4,2675.3,4.0506005]
[1727524503481,3.2078,2675.4,2675.3,4.0506005]
[1727524503678,1.14288,2675.7,2675.3,4.35971526]
[1727524503882,1.14288,2675.7,2675.6,1.84506186]
[1727524504077,1.14288,2675.7,2675.6,2.79372765]
[1727524506589,1.14288,2675.7,2675.6,1.32174664]
[1727524507383,1.14288,2675.7,2675.6,2.7931185]
[1727524507585,1.14287,2675.7,2675.6,0.98050026]
[1727524509091,0.74617,2675.7,2675.6,0.98050026]
[1727524509385,0.37367,2675.7,2675.6,2.30193983]
[1727524509588,0.37367,2675.7,2675.6,2.30181475]
[1727524509789,0.37367,2675.7,2675.6,1.32131449]
[1727524510384,0.37367,2675.7,2675.6,2.30150819]
[1727524510586,0.37367,2675.7,2675.6,0.9801937]
[1727524513886,0.37367,2675.7,2675.5,1.84377186]
[1727524513887,0.37369,2675.6,2675.5,1.3525937]
[1727524514088,0.37369,2675.6,2675.5,1.69350342]
[1727524514487,0.37369,2675.6,2675.5,3.16487528]
[1727524518697,0.37369,2675.6,2675.5,1.69350342]
[1727524519500,0.37369,2675.6,2675.5,3.16487528]
[1727524520894,0.37369,2675.6,2675.5,1.69350342]
[1727524521196,4.5578,2675.7,2675.5,3.53857528]
[1727524521197,4.93148,2675.7,2675.5,3.53857528]
[1727524521401,4.93148,2675.7,2675.6,0.98030201]
[1727524521897,3.58148,2675.7,2675.6,0.98030201]
[1727524522302,3.2078,2675.7,2675.6,3.04485295]
[1727524522595,3.2078,2675.7,2675.6,10.92564164]
[1727524522596,2.64699713,2675.7,2675.6,10.92564164]
[1727524523302,2.64699713,2675.7,2675.6,10.92549728]
[1727524523597,2.64699713,2675.7,2675.6,10.00139445]
[1727524524389,2.64699713,2675.7,2675.6,11.96028473]
[1727524524620,2.64699713,2675.7,2675.6,11.38272046]
[1727524524798,2.64699713,2675.7,2675.6,11.96006823]
[1727524525487,2.64699713,2675.7,2675.6,11.95105825]
[1727524526602,0.37365,2675.9,2675.7,0.37367]
[1727524526801,2.0681,2676.2,2675.8,2.0928434]
[1727524526995,3.2078,2675.9,2675.8,0.775]
[1727524527300,3.2078,2675.9,2675.8,2.09253371]
[1727524527699,3.58144,2675.9,2675.8,2.09253371]
[1727524528004,0.37364,2675.9,2675.8,3.56138794]
[1727524528304,0.37364,2676.0,2675.8,3.95518794]
[1727524528504,0.37364,2675.9,2675.8,2.63765423]
[1727524528701,0.37364,2675.9,2675.8,3.95477865]
[1727524529599,0.37364,2675.9,2675.8,2.14757681]
[1727524530898,0.37364,2676.0,2675.8,2.52122681]
[1727524531099,0.37363,2676.0,2675.8,2.14757681]
[1727524531305,0.37363,2676.0,2675.8,2.52122681]
[1727524532003,0.37364,2675.9,2675.8,2.52122681]
[1727524532302,0.37364,2676.0,2675.8,2.52122681]
[1727524533000,0.37364,2676.0,2675.8,1.54245]
[1727524535497,0.37364,2676.0,2675.9,1.35]
[1727524535701,3.2078,2676.1,2675.9,1.35]
[1727524535898,3.2078,2676.1,2676.0,1.72363]
[1727524536708,3.2078,2676.1,2676.0,4.01845261]
[1727524537304,3.2078,2676.1,2676.0,2.70240681]
[1727524538698,3.2078,2676.1,2676.0,4.0206135]
[1727524538897,3.2078,2676.1,2676.0,2.70240681]
[1727524542614,3.2078,2676.4,2676.2,0.37359]
[1727524542807,3.58139,2676.4,2676.3,1.7264]
[1727524543000,3.58139,2676.4,2676.3,0.3764]
[1727524543512,0.3698,2676.4,2676.3,0.3764]
[1727524543710,0.3698,2676.4,2676.3,0.74999]
[1727524544209,0.37356,2676.5,2676.3,4.48679]
[1727524544516,0.37356,2676.5,2676.3,6.8221193]
[1727524544517,0.37357,2676.5,2676.3,6.8221193]
[1727524544713,0.37357,2676.5,2676.4,0.4052]
[1727524547918,0.3698,2676.6,2676.4,0.4052]
[1727524548114,0.37356,2676.5,2676.4,0.4052]
[1727524549313,0.3698,2676.6,2676.4,0.4052]
[1727524549515,0.74336,2676.6,2676.4,0.4052]
[1727524549716,0.37356,2676.5,2676.4,0.4052]
[1727524552911,3.5776,2676.6,2676.2,0.3736]
[1727524552912,4.9276,2676.6,2676.2,0.3736]
[1727524553118,4.9276,2676.6,2676.3,0.3712]
[1727524553119,0.37358,2676.4,2676.3,0.3712]
[1727524553314,0.37357,2676.5,2676.3,0.3712]
[1727524554017,0.37358,2676.4,2676.3,0.3712]
[1727524554220,1.35,2676.4,2676.1,0.97763341]
[1727524554412,5.3653,2676.3,2676.0,0.3839]
[1727524554722,4.0153,2676.3,2676.1,0.37361]
[1727524555111,4.0153,2676.3,2676.2,0.4079]
[1727524557023,4.38889,2676.3,2676.2,0.4079]
[1727524557622,4.0153,2676.3,2676.2,0.4079]
[1727524558917,4.38889,2676.3,2676.2,0.4079]
[1727524560025,4.0153,2676.3,2676.2,0.4079]
[1727524561221,4.38889,2676.3,2676.2,0.4079]
[1727524561741,0.37361,2676.2,2676.0,3.08516341]
[1727524562113,0.37361,2676.2,2676.0,2.71153341]
[1727524562317,0.37361,2676.2,2676.0,1.36153341]
[1727524562626,5.7389,2676.3,2676.0,1.73515341]
[1727524562823,4.3889,2676.3,2676.1,1.72361]
[1727524563026,4.3889,2676.3,2676.1,1.35]
[1727524563221,4.3889,2676.3,2676.2,0.4048]
[1727524564121,3.607,2676.6,2676.2,1.7548]
[1727524564325,0.4,2676.5,2676.4,1.35]
[1727524564520,0.4,2676.5,2676.4,1.7571]
[1727524565233,3.2078,2676.6,2676.5,0.37356]
[1727524565525,3.2078,2676.6,2676.5,1.72356]
[1727524565718,3.2078,2676.6,2676.5,3.09029341]
[1727524566715,3.2078,2676.6,2676.5,1.7391]
[1727524569728,0.37354,2676.7,2676.5,1.7391]
[1727524570330,0.37353,2676.7,2676.5,1.7391]
[1727524570632,0.3703,2676.7,2676.5,2.11265]
[1727524570824,0.74383,2676.7,2676.5,2.11265]
[1727524571519,0.74383,2676.7,2676.5,1.7391]
[1727524572229,0.3703,2676.7,2676.5,2.11265]
[1727524572427,0.74384,2676.7,2676.5,2.11265]
[1727524572627,0.3703,2676.7,2676.5,2.11265]
[1727524572828,0.74384,2676.7,2676.5,1.7391]
[1727524573533,0.3703,2676.7,2676.5,1.7391]
[1727524573729,0.3703,2676.7,2676.5,2.11266]
[1727524574325,3.2078,2676.8,2676.7,0.37353]
[1727524574525,3.2078,2676.8,2676.7,1.35]
[1727524574724,3.2078,2676.8,2676.7,2.70116341]